bitfinex/quotes_ETHUSD_20250914
["timestamp","ask_amount","ask_price","bid_price","bid_amount"]
[1757854839765,3.44092075,4632.9,4632.8,6.52901184]
[1757854839964,1.785,4632.9,4632.8,6.52901184]
[1757854840159,0.001,4633.2,4633.1,2.15838207]
[1757854840355,0.001,4633.2,4633.1,3.26455045]
[1757854840356,3.651,4633.2,4633.1,3.26455045]
[1757854840668,3.651,4633.2,4633.1,7.46106663]
[1757854842353,0.001,4633.2,4633.1,7.46106663]
[1757854844158,0.001,4633.2,4633.1,8.25306663]
[1757854852575,0.001,4633.2,4633.1,11.90006663]
[1757854857167,0.002,4634.2,4633.1,11.90006663]
[1757854857168,0.002,4634.2,4634.1,2.15791631]
[1757854857372,0.002,4634.2,4634.1,9.25708566]
[1757854857597,0.002,4634.2,4634.1,10.5371065]
[1757854858170,0.002,4634.2,4634.1,10.0708065]
[1757854858798,0.002,4634.2,4634.1,5.6967065]
[1757854858973,0.582,4634.2,4634.1,5.6967065]
[1757854860883,0.101,4634.2,4634.1,5.6967065]
[1757854862008,0.002,4634.2,4634.1,5.6967065]
[1757854863105,0.002,4634.2,4634.1,6.4248065]
[1757854865110,0.9394,4634.2,4632.8,2.28407276]
[1757854865411,3.8384,4634.1,4632.8,0.001]
[1757854865610,3.95907418,4634.1,4632.8,0.001]
[1757854865800,2.26007525,4632.9,4632.8,0.001]
[1757854865975,8.00292248,4632.9,4632.8,0.001]
[1757854866177,6.68024723,4632.9,4632.8,0.001]
[1757854866505,6.2384,4632.9,4632.8,0.001]
[1757854866716,2.5934,4632.9,4632.8,0.001]
[1757854866880,6.2384,4632.9,4632.8,0.001]
[1757854867080,8.39687525,4632.9,4632.8,0.001]
[1757854868005,6.2384,4632.9,4632.8,0.001]
[1757854870999,8.39687525,4632.9,4632.8,0.001]
[1757854871200,9.23656278,4632.9,4632.8,0.001]
[1757854872734,8.88176278,4632.9,4632.8,0.001]
[1757854873311,9.23656278,4632.9,4632.8,0.001]
[1757854875210,8.88176278,4632.9,4632.8,0.001]
[1757854878813,8.04207525,4632.9,4632.8,0.001]
[1757854879409,7.56107525,4632.9,4632.8,0.001]
[1757854880030,7.45947525,4632.9,4632.8,0.001]
[1757854883745,4.39447525,4632.9,4632.8,0.001]
[1757854883947,8.03847525,4632.9,4632.8,0.001]
[1757854884149,10.11246162,4632.9,4632.8,0.001]
[1757854886921,9.76016162,4632.9,4632.8,0.001]
[1757854887146,10.11246162,4632.9,4632.8,0.001]
[1757854888061,10.11246162,4632.9,4632.3,1e-08]
[1757854888062,2.15863598,4632.6,4632.3,1e-08]
[1757854888275,3.792,4632.4,4632.3,1e-08]
[1757854888429,4.01876132,4632.4,4632.3,1e-08]
[1757854888756,7.0895883,4632.4,4632.3,1e-08]
[1757854891448,8.3845883,4632.4,4632.3,1e-08]
[1757854893164,13.7597883,4632.4,4632.3,1e-08]
[1757854893471,18.89688701,4632.4,4632.3,1e-08]
[1757854895967,18.89720556,4632.4,4632.3,1e-08]
[1757854896970,14.46120556,4632.4,4632.3,1e-08]
[1757854897171,18.10520556,4632.4,4632.3,1e-08]
[1757854897767,18.45500556,4632.4,4632.3,1e-08]
[1757854898675,18.10520556,4632.4,4632.3,1e-08]
[1757854900174,17.52270556,4632.4,4632.3,1e-08]
[1757854900378,13.87870556,4632.4,4632.3,1e-08]
[1757854900685,17.52270556,4632.4,4632.3,1e-08]
[1757854901354,18.10760556,4632.4,4632.3,1e-08]
[1757854902988,19.24700556,4632.4,4632.3,1e-08]
[1757854903354,20.54300556,4632.4,4632.3,1e-08]
[1757854903551,21.00562154,4632.4,4632.3,1e-08]
[1757854906979,20.65822154,4632.4,4632.3,1e-08]
[1757854908784,17.01422154,4632.4,4632.3,1e-08]
[1757854908969,18.31370556,4632.4,4632.3,1e-08]
[1757854909167,14.67070556,4632.4,4632.3,0.30680001]
[1757854909369,18.31370556,4632.4,4632.3,0.30680001]
[1757854910183,18.31370556,4632.4,4632.3,1e-08]
[1757854911190,18.88960556,4632.4,4632.3,1e-08]
[1757854911359,19.35257117,4632.4,4632.3,1e-08]
[1757854912292,19.91096302,4632.4,4632.3,1e-08]
[1757854912487,19.55356302,4632.4,4632.3,1e-08]
[1757854912694,19.35257117,4632.4,4632.3,1e-08]
[1757854913174,19.55362825,4632.4,4632.3,1e-08]
[1757854915394,21.20702825,4632.4,4632.3,1e-08]
[1757854915765,20.84962825,4632.4,4632.3,1e-08]
[1757854917394,21.42886891,4632.4,4632.3,1e-08]
[1757854918479,20.84962825,4632.4,4632.3,1e-08]
[1757854918925,15.21481109,4632.4,4632.3,1e-08]
[1757854919205,19.07678286,4632.4,4632.3,1e-08]
[1757854919676,18.77616307,4632.4,4632.3,1e-08]
[1757854919877,18.85681054,4632.4,4632.3,1e-08]
[1757854920078,18.97778208,4632.4,4632.3,1e-08]
[1757854920382,18.7567913,4632.4,4632.3,1e-08]
[1757854920699,19.2176913,4632.4,4632.3,1e-08]
[1757854921202,20.8684913,4632.4,4632.3,1e-08]
[1757854921504,20.5136913,4632.4,4632.3,1e-08]
[1757854924609,20.8684913,4632.4,4632.3,1e-08]
[1757854924794,20.5136913,4632.4,4632.3,1e-08]
[1757854924995,5.088,4632.1,4630.0,0.5004]
[1757854925205,2.15968727,4630.3,4630.2,1e-08]
[1757854925410,11.88583922,4630.3,4630.2,1e-08]
[1757854925613,11.78827792,4630.3,4630.2,1e-08]
[1757854925814,12.25357792,4630.3,4630.2,1e-08]
[1757854926620,12.25357792,4630.3,4630.2,0.77130001]
[1757854926791,8.61257792,4630.3,4630.2,0.77130001]
[1757854927103,12.25357792,4630.3,4630.2,0.77130001]
[1757854927424,2.95178056,4630.1,4630.0,0.001]
[1757854927628,6.91540248,4630.1,4630.0,0.001]
[1757854927806,7.67550248,4630.1,4630.0,0.001]
[1757854928306,7.47386378,4630.1,4630.0,0.001]
[1757854928519,7.03374614,4630.1,4630.0,0.001]
[1757854928719,15.2362562,4630.1,4630.0,0.001]
[1757854928919,14.65561211,4630.1,4630.0,0.001]
[1757854929214,14.38594049,4630.1,4630.0,0.001]
[1757854929782,5.95234046,4628.9,4628.8,1e-08]
[1757854929996,12.19758407,4628.9,4628.8,1e-08]
[1757854930516,9.00788407,4628.9,4628.8,0.30600001]
[1757854930725,12.66288407,4628.9,4628.8,0.77130001]
[1757854931097,9.00788407,4628.9,4628.8,0.77130001]
[1757854931304,12.66288407,4628.9,4628.8,0.77130001]
[1757854932317,12.66288407,4628.9,4628.8,1e-08]
[1757854932521,12.96208407,4628.9,4628.8,1e-08]
[1757854932824,13.88258407,4628.9,4628.8,1e-08]
[1757854933512,15.17858407,4628.9,4628.8,1e-08]
[1757854934307,16.62704246,4628.9,4628.8,1e-08]
[1757854935025,16.08807028,4628.9,4628.8,1e-08]
[1757854935239,15.63977911,4628.9,4628.8,1e-08]
[1757854935395,11.98377911,4628.9,4628.8,1e-08]
[1757854935734,15.63834111,4628.9,4628.8,1e-08]
[1757854935918,2.95271389,4628.1,4628.0,1e-08]
[1757854936236,10.12004924,4628.1,4628.0,1e-08]
[1757854936434,10.42634924,4628.1,4628.0,1e-08]
[1757854936735,10.92574924,4628.1,4628.0,1e-08]
[1757854937045,10.61944924,4628.1,4628.0,1e-08]
[1757854937197,3.792,4628.0,4627.8,0.001]
[1757854937536,11.3887615,4627.9,4627.8,0.001]
[1757854937934,11.3887615,4627.9,4627.3,0.4994]
[1757854937935,5.95304075,4627.4,4627.3,0.4994]
[1757854938238,2.16118086,4627.1,4626.8,0.5526]
[1757854938406,2.16118086,4627.1,4627.0,0.2883]
[1757854938606,7.47418086,4627.1,4627.0,0.7599]
[1757854938800,10.47418086,4627.1,4627.0,0.7599]
[1757854939522,6.81918086,4627.1,4627.0,1.2045]
[1757854939732,10.47418086,4627.1,4627.0,1.2045]
[1757854940110,6.81918086,4627.1,4627.0,1.2045]
[1757854940720,10.47518086,4627.1,4627.0,1.2045]
[1757854941102,10.47418086,4627.1,4627.0,1.2045]
[1757854942634,2.16127428,4626.9,4626.8,0.081]
[1757854942798,8.81627428,4626.9,4626.8,0.081]
[1757854942999,8.81627428,4626.9,4626.8,0.3693]
[1757854943304,8.81627428,4626.9,4626.8,0.8409]
[1757854943525,8.81627428,4626.9,4626.8,1.2855]
[1757854944002,5.16127428,4626.9,4626.8,1.2855]
[1757854944227,8.81527428,4626.9,4626.8,1.2855]
[1757854944726,5.16127428,4626.9,4626.8,0.8409]
[1757854944920,8.81527428,4626.9,4626.8,1.2855]
[1757854945115,5.16127428,4626.9,4626.8,0.8409]
[1757854945301,5.16127428,4626.9,4626.8,1.2855]
[1757854945302,3.0,4626.9,4626.8,1.2855]
[1757854945497,6.654,4626.9,4626.8,1.2855]
[1757854945933,5.16127428,4626.9,4626.8,1.2855]
[1757854946102,1.658,4627.1,4626.8,3.57546963]
[1757854946297,1.658,4627.1,4626.9,0.93781274]
[1757854946524,1.658,4627.1,4626.9,0.9162]
[1757854946525,3.655,4627.0,4626.9,0.9162]
[1757854946730,1.658,4627.1,4626.9,1.56215583]
[1757854947028,1.658,4627.1,4627.0,0.93781227]
[1757854947205,5.313,4627.1,4627.0,0.93781227]
[1757854947409,1.658,4627.1,4627.0,1.2045]
[1757854947607,7.47418086,4627.1,4627.0,0.7599]
[1757854947834,10.47418086,4627.1,4627.0,1.2045]
[1757854948416,5.315,4627.1,4627.0,1.2045]
[1757854948603,1.658,4627.1,4627.0,1.33305]
[1757854948811,5.315,4627.1,4627.0,1.33305]
[1757854949816,5.315,4627.1,4627.0,1.2045]
[1757854950218,3.81918086,4627.1,4627.0,1.2045]
[1757854950509,7.47818086,4627.1,4627.0,1.2045]
[1757854950932,7.47818086,4627.1,4627.0,0.7599]
[1757854951710,5.317,4627.1,4627.0,1.2045]
[1757854952812,5.316,4627.1,4627.0,1.2045]
[1757854953008,5.316,4627.1,4626.8,0.081]
[1757854953009,5.6223,4627.1,4626.8,0.081]
[1757854953248,2.16127428,4626.9,4626.8,0.081]
[1757854953413,5.82527428,4626.9,4626.8,0.081]
[1757854953617,5.82527428,4626.9,4626.8,0.3693]
[1757854955959,3.81918086,4627.1,4626.8,0.3693]
[1757854955960,1.658,4627.1,4626.8,0.3693]
[1757854956169,3.663,4627.0,4626.9,0.9162]
[1757854956467,3.663,4627.0,4626.9,1.2045]
[1757854957248,1.658,4627.1,4626.9,1.551448]
[1757854957428,1.658,4627.1,4627.0,0.93781227]
[1757854957632,5.32,4627.1,4627.0,0.93781227]
[1757854957934,5.32,4627.1,4627.0,1.22611227]
[1757854959455,5.319,4627.1,4627.0,1.22611227]
[1757854960650,7.48018086,4627.1,4627.0,0.2883]
[1757854960849,5.319,4627.1,4627.0,0.2883]
[1757854962343,5.6253,4627.1,4626.8,0.081]
[1757854962553,2.16127428,4626.9,4626.8,0.081]
[1757854962729,5.81927428,4626.9,4626.8,0.081]
[1757854962939,10.18867888,4626.9,4626.8,0.081]
[1757854963242,11.45071534,4626.9,4626.8,1e-08]
[1757854963446,12.85150131,4626.9,4626.8,1e-08]
[1757854965037,8.39450131,4626.9,4626.8,1e-08]
[1757854965267,7.45296485,4626.9,4626.8,1e-08]
[1757854965469,10.65296485,4626.9,4626.8,1e-08]
[1757854965633,11.11600131,4626.9,4626.8,1e-08]
[1757854966433,5.28187888,4626.9,4626.8,0.30920001]
[1757854966631,8.94587888,4626.9,4626.8,0.30920001]
[1757854967068,5.28187888,4626.9,4626.8,0.30920001]
[1757854967363,8.94587888,4626.9,4626.8,1e-08]
[1757854968454,8.94587888,4626.9,4626.8,0.30920001]
[1757854969372,8.94487888,4626.9,4626.8,0.30920001]
[1757854969741,8.94387888,4626.9,4626.8,0.30920001]
[1757854970171,5.28187888,4626.9,4626.8,0.30920001]
[1757854970374,0.1206046,4626.9,4626.8,0.30920001]
[1757854970585,1.658,4627.1,4626.8,1.27390001]
[1757854970768,3.661,4627.0,4626.9,0.02161274]
[1757854970960,3.661,4627.0,4626.9,0.9647]
[1757854971161,3.661,4627.0,4626.9,1.2739]
[1757854974050,3.661,4627.0,4626.9,0.8063]
[1757854974264,5.82222757,4627.0,4626.9,0.3092]
[1757854974651,3.661,4627.0,4626.9,0.3092]
[1757854975591,3.659,4627.0,4626.9,0.3092]
[1757854975752,3.659,4627.0,4626.9,0.803]
[1757854976087,3.766,4627.0,4626.9,1.237]
[1757854976960,3.765,4627.0,4626.9,1.57920193]
[1757854977674,3.656,4627.0,4626.9,3.74047621]
[1757854979663,1.66,4627.1,4626.9,3.74047621]
[1757854979968,3.655,4627.0,4626.9,2.81267621]
[1757854980359,3.655,4627.0,4626.9,3.74047621]
[1757854980886,1.66,4627.1,4627.0,2.16122757]
[1757854981067,5.314,4627.1,4627.0,3.24529795]
[1757854981264,5.314,4627.1,4627.0,3.53589795]
[1757854982556,5.6167,4627.1,4626.8,0.00100001]
[1757854982756,0.108,4626.9,4626.8,0.00100001]
[1757854982988,5.92227428,4626.9,4626.8,0.00100001]
[1757854983186,7.14547428,4626.9,4626.8,0.00100001]
[1757854983389,8.24214017,4626.9,4626.8,0.00100001]
[1757854984769,11.24214017,4626.9,4626.8,0.00100001]
[1757854984972,11.36262826,4626.9,4626.8,0.00100001]
[1757854985177,11.24214017,4626.9,4626.8,0.00100001]
[1757854986292,11.24214017,4626.9,4626.0,0.001]
[1757854986293,2.95350786,4626.4,4626.3,1e-08]
[1757854986595,9.60750786,4626.4,4626.3,1e-08]
[1757854986800,11.29303358,4626.4,4626.3,1e-08]
[1757854987267,2.16178823,4625.8,4625.7,1e-08]
[1757854987616,8.26878823,4625.8,4625.7,1e-08]
[1757854987809,0.12039994,4625.8,4625.7,1e-08]
[1757854987969,1.97998044,4627.2,4625.7,1.21840001]
[1757854988159,1.97998044,4627.2,4625.8,3.9278]
[1757854988160,2.374,4627.0,4625.8,3.9278]
[1757854988361,2.374,4627.0,4626.9,0.2906]
[1757854988588,2.374,4627.0,4626.9,1.2184]
[1757854988796,2.6767,4627.0,4626.0,2.16166678]
[1757854988956,2.374,4627.0,4626.1,2.8794737]
[1757854989160,2.374,4627.0,4626.8,0.001]
[1757854989461,2.374,4627.0,4626.9,0.20166896]
[1757854990268,3.709,4627.0,4626.9,0.49226896]
[1757854990494,3.709,4627.0,4626.9,0.98606896]
[1757854991099,3.709,4627.0,4626.9,1.42006896]
[1757854991494,3.709,4627.0,4626.9,1.78047363]
[1757854991794,3.709,4627.0,4626.9,1.42006896]
[1757854992193,3.709,4627.0,4626.9,0.49226896]
[1757854992599,3.709,4627.0,4626.9,0.98606896]
[1757854992764,3.709,4627.0,4626.9,1.42006896]
[1757854992960,3.709,4627.0,4626.9,0.49226896]
[1757854993527,4.9322,4627.0,4626.9,0.20166896]
[1757854993731,7.09342757,4627.0,4626.9,0.20167124]
[1757854994033,4.9322,4627.0,4626.9,0.20167124]
[1757854994394,4.4809,4627.0,4626.9,0.20167124]
[1757854995313,4.0117,4627.0,4626.9,0.20167124]
[1757854995531,3.709,4627.0,4626.9,0.20167124]
[1757854995894,3.715,4627.0,4626.9,0.20167124]
[1757854998324,3.711,4627.0,4626.9,0.20167124]
[1757854998530,3.711,4627.0,4626.9,0.50657124]
[1757854998953,3.711,4627.0,4626.9,0.20167124]
[1757854999562,0.002,4627.4,4626.9,0.50657124]
[1757854999781,0.002,4627.4,4627.0,0.20167124]
[1757855000071,0.11,4627.1,4627.0,0.20167124]
[1757855000271,3.819,4627.1,4627.0,0.20167124]
[1757855000430,4.1107,4627.1,4627.0,0.20167124]
[1757855000627,7.58115086,4627.1,4627.0,0.20167124]
[1757855000876,10.70166439,4627.1,4627.0,0.20167124]
[1757855001085,2.16127428,4626.9,4626.8,0.001]
[1757855001380,2.95346171,4626.5,4625.8,0.001]
[1757855001577,0.2917,4625.9,4625.8,0.001]
[1757855001727,5.45344149,4625.9,4625.8,0.001]
[1757855001932,10.18295502,4625.9,4625.8,0.001]
[1757855002159,5.57395502,4625.9,4625.8,0.001]
[1757855002343,9.16344149,4625.9,4625.8,0.001]
[1757855003160,10.06144149,4625.9,4625.8,0.001]
[1757855003465,11.28374887,4625.9,4625.8,0.001]
[1757855004599,12.19598291,4625.9,4625.8,0.001]
[1757855004781,12.19598291,4625.9,4623.3,2.16291622]
[1757855004782,2.16183496,4625.7,4622.8,0.08]
[1757855005091,3.792,4624.9,4622.8,0.08]
[1757855005294,9.80779464,4624.9,4622.8,0.571]
[1757855005499,10.70579464,4624.9,4622.8,0.571]
[1757855005799,10.70579464,4624.9,4622.9,0.4466]
[1757855006000,10.70579464,4624.9,4623.0,0.02163097]
[1757855006304,7.7879151,4624.9,4623.4,1.0776]
[1757855006456,11.5029151,4624.9,4623.4,1.0776]
[1757855006657,11.9558151,4624.9,4623.4,1.0776]
[1757855006853,8.2408151,4624.9,4623.5,0.02162863]
[1757855007105,4.659,4624.9,4623.9,0.491]
[1757855007258,7.53620891,4624.9,4624.1,0.4466]
[1757855007459,7.53620891,4624.9,4624.8,0.3849]
[1757855007460,1.659,4624.9,4624.8,0.3849]
[1757855007658,1.659,4624.9,4624.8,1.3225]
[1757855007958,5.374,4624.9,4624.8,0.8759]
[1757855009070,5.373,4624.9,4624.8,0.8759]
[1757855009377,5.373,4624.9,4624.8,1.3225]
[1757855009683,5.373,4624.9,4624.8,0.3849]
[1757855009983,5.373,4624.9,4624.8,0.8759]
[1757855010204,5.6647,4624.9,4624.8,0.08]
[1757855010500,9.26220891,4624.9,4624.8,0.08]
[1757855011201,8.81130891,4624.9,4624.8,0.08]
[1757855011361,8.36620891,4624.9,4624.8,0.08]
[1757855012105,7.82690891,4624.9,4624.8,0.08]
[1757855012276,5.375,4624.9,4624.8,0.08]
[1757855012484,8.72690891,4624.9,4624.8,0.08]
[1757855013208,7.82890891,4624.9,4624.8,0.08]
[1757855013612,11.72690891,4624.9,4624.8,0.08]
[1757855013920,13.11581321,4624.9,4624.8,0.08]
[1757855014284,9.39981321,4624.9,4624.8,0.08]
[1757855014486,12.21781321,4624.9,4624.8,0.08]
[1757855014734,10.53820891,4624.9,4624.8,0.08]
[1757855015389,5.375,4624.9,4624.8,0.3849]
[1757855016703,1.659,4624.9,4624.8,0.3849]
[1757855017092,1.659,4624.9,4624.8,1.3225]
[1757855017093,5.374,4624.9,4624.8,1.3225]
[1757855018532,5.374,4624.9,4624.8,0.3849]
[1757855019705,5.374,4624.9,4624.8,0.08]
[1757855019916,7.82790891,4624.9,4624.8,0.08]
[1757855020100,8.27300891,4624.9,4624.8,0.08]
[1757855020704,8.27300891,4624.9,4624.7,0.001]
[1757855020705,2.95425566,4624.8,4624.7,0.001]
[1757855020944,5.95425566,4624.8,4624.7,0.001]
[1757855021144,6.69885566,4624.8,4624.7,0.001]
[1757855021345,7.14395566,4624.8,4624.7,0.001]
[1757855021516,8.93361545,4624.8,4624.7,0.001]
[1757855022248,12.65061545,4624.8,4624.7,0.001]
[1757855023351,8.14161545,4624.8,4624.7,0.001]
[1757855023520,10.95961545,4624.8,4624.7,0.001]
[1757855023834,11.40471545,4624.8,4624.7,0.001]
[1757855024052,11.40371545,4624.8,4624.7,0.001]
[1757855024210,11.85661545,4624.8,4624.7,0.001]
[1757855027741,8.14161545,4624.8,4624.7,0.001]
[1757855027944,12.76572224,4624.8,4624.7,0.001]
[1757855029557,12.76472224,4624.8,4624.7,0.001]
[1757855030123,13.22699115,4624.8,4624.7,0.001]
[1757855031257,13.22699115,4624.8,4623.7,0.001]
[1757855031258,5.9547233,4623.8,4623.7,0.001]
[1757855031421,16.63383009,4623.8,4623.7,0.001]
[1757855031610,17.08523009,4623.8,4623.7,0.001]
[1757855031815,0.792,4623.6,4620.5,3.71061005]
[1757855032043,0.3075,4622.9,4621.7,0.4945]
[1757855032316,11.63364434,4622.9,4621.8,0.4461]
[1757855032515,11.75375113,4622.9,4621.8,0.4461]
[1757855033848,8.04275113,4622.9,4621.8,0.4461]
[1757855034049,12.81849346,4622.9,4621.7,0.4945]
[1757855034213,8.80099346,4622.9,4622.8,0.3678]
[1757855034415,11.44825113,4622.9,4622.8,0.3678]
[1757855034958,11.75575113,4622.9,4622.8,0.08]
[1757855035163,12.20735113,4622.9,4622.8,0.08]
[1757855035331,12.65882839,4622.9,4622.8,0.08]
[1757855035533,0.792,4622.7,4621.2,0.4945]
[1757855035757,2.16382542,4621.5,4621.2,0.9406]
[1757855035964,2.16382542,4621.5,4621.4,0.2891]
[1757855036166,7.53882542,4621.5,4621.4,1.2066]
[1757855036630,7.53882542,4621.5,4621.4,0.7446]
[1757855037251,7.53882542,4621.5,4620.2,2.16438171]
[1757855037252,2.16408059,4620.9,4620.4,0.4555]
[1757855037463,5.87908059,4620.9,4620.4,0.4555]
[1757855037662,5.87908059,4620.9,4620.8,0.3691]
[1757855038056,5.87908059,4620.9,4620.8,0.08]
[1757855039037,3.717,4620.9,4620.8,0.3691]
[1757855039449,5.88108059,4620.9,4620.8,0.3691]
[1757855039870,3.717,4620.9,4620.8,0.3691]
[1757855040166,3.0,4621.4,4620.8,0.3691]
[1757855040353,3.716,4621.3,4620.8,1.2866]
[1757855040667,3.716,4621.2,4620.9,0.9175]
[1757855041069,1.66,4621.5,4621.1,0.2891]
[1757855041249,3.715,4621.4,4621.2,0.9175]
[1757855041448,3.715,4621.4,4621.3,0.2891]
[1757855041848,1.66,4621.5,4621.3,1.2066]
[1757855042056,3.715,4621.4,4621.3,0.2891]
[1757855042662,1.66,4621.5,4621.3,0.7446]
[1757855042871,3.715,4621.4,4621.3,0.7446]
[1757855043068,3.715,4621.4,4621.3,0.2891]
[1757855043292,3.715,4621.4,4620.8,0.08]
[1757855043293,0.792,4621.2,4620.8,0.08]
[1757855043451,3.717,4621.1,4620.8,0.08]
[1757855043786,1.66,4621.5,4621.1,0.2891]
[1757855043985,3.717,4621.4,4621.1,0.2891]
[1757855044170,3.717,4621.4,4621.2,0.9175]
[1757855044350,3.717,4621.4,4621.3,0.2891]
[1757855044555,1.66,4621.5,4621.3,0.2891]
[1757855044752,3.717,4621.4,4621.3,1.2066]
[1757855044958,3.716,4621.4,4621.3,1.2066]
[1757855045345,4.66,4621.5,4621.3,1.2066]
[1757855045547,3.716,4621.4,4621.3,1.2066]
[1757855045969,3.716,4621.4,4621.3,1.2076]
[1757855046169,6.82381327,4621.5,4621.3,0.7456]
[1757855046352,3.716,4621.4,4621.3,1.2076]
[1757855046873,1.66,4621.5,4621.4,0.9175]
[1757855047040,5.375,4621.5,4621.4,1.2066]
[1757855047787,5.375,4621.5,4621.3,0.02263893]
[1757855047788,2.16384645,4621.4,4621.3,0.001]
[1757855051977,5.87284645,4621.4,4621.3,0.001]
[1757855052181,9.96784645,4621.4,4621.3,0.001]
[1757855052485,12.24620865,4621.4,4621.3,0.001]
[1757855053319,12.3661841,4621.4,4621.3,0.001]
[1757855053693,12.24920865,4621.4,4621.3,0.001]
[1757855054186,12.36916699,4621.4,4621.3,0.001]
[1757855055402,3.0,4621.3,4619.6,0.02164689]
[1757855055603,0.792,4620.8,4619.8,0.9175]
[1757855055780,2.16431751,4620.4,4619.8,0.9175]
[1757855055981,0.11995834,4621.1,4619.8,0.9175]
[1757855055982,0.792,4621.1,4620.3,0.2891]
[1757855056305,3.792,4620.9,4620.3,0.2891]
[1757855056602,1.661,4621.0,4620.3,0.2891]
[1757855056775,3.0,4620.8,4620.3,0.2891]
[1757855056975,3.296,4620.7,4620.4,0.9253]
[1757855057185,3.296,4620.7,4620.5,0.9253]
[1757855057479,3.296,4620.7,4620.6,1.2145]
[1757855058610,3.296,4620.7,4620.0,0.4848]
[1757855059927,3.82505157,4621.0,4620.6,0.2892]
[1757855060083,3.714,4620.9,4620.6,1.2145]
[1757855060485,1.661,4621.0,4620.6,0.774]
[1757855060788,1.661,4621.0,4620.7,0.9253]
[1757855060789,3.713,4620.9,4620.7,0.9253]
[1757855060987,3.713,4620.9,4620.0,0.4848]
[1757855061298,2.16413682,4620.8,4620.0,2.649288]
[1757855061623,3.713,4620.7,4620.1,2.60494219]
[1757855061915,3.713,4620.7,4620.6,0.2892]
[1757855062087,3.712,4620.7,4620.6,0.2892]
[1757855062603,3.82504107,4621.0,4620.6,0.774]
[1757855062916,3.71,4620.9,4620.7,0.4848]
[1757855063123,3.71,4620.9,4620.2,0.9253]
[1757855063421,3.71,4620.8,4620.2,0.9253]
[1757855063821,3.71,4620.8,4620.2,0.4848]
[1757855064291,3.71,4620.8,4620.2,2.64918556]
[1757855064604,3.71,4620.8,4620.2,0.4848]
[1757855064809,3.71,4620.8,4620.7,0.2892]
[1757855065186,3.708,4620.8,4620.7,0.2892]
[1757855065525,0.002,4620.9,4620.8,2.16412742]
[1757855065688,0.002,4620.9,4620.8,2.18576869]
[1757855065889,3.71,4620.9,4620.8,2.58296869]
[1757855066185,0.002,4620.9,4620.8,3.48662742]
[1757855066398,1.833,4620.9,4620.8,4.07840938]
[1757855066600,3.71,4620.9,4620.8,4.07840938]
[1757855067200,3.709,4620.9,4620.8,4.07840938]
[1757855067396,0.002,4620.9,4620.8,4.07840938]
[1757855067609,0.002,4620.9,4620.8,7.07840938]
[1757855069006,0.002,4620.9,4620.8,7.87040938]
[1757855069719,1e-08,4621.4,4620.9,3.792]
[1757855069926,1e-08,4621.4,4621.3,5.16389327]
[1757855070114,1e-08,4621.4,4621.3,39.26909327]
[1757855070488,1e-08,4621.4,4621.3,40.19439327]
[1757855070890,1e-08,4621.4,4621.3,10.98739327]
[1757855071120,1e-08,4621.4,4621.3,12.46863129]
[1757855071318,1e-08,4621.4,4621.3,14.0162054]
[1757855072318,1e-08,4621.4,4621.3,7.96763129]
[1757855073350,1e-08,4621.4,4621.3,7.52713129]
[1757855073545,1e-08,4621.4,4621.3,7.04233129]
[1757855074732,1e-08,4621.4,4621.3,7.96763129]
[1757855076949,1e-08,4621.4,4621.3,7.85963129]
[1757855078925,1e-08,4621.4,4621.3,11.56463129]
[1757855081759,1e-08,4621.4,4621.3,12.35663129]
[1757855081963,1e-08,4621.4,4621.3,14.01663129]
[1757855082262,1e-08,4621.4,4621.3,15.5642054]
[1757855082760,1e-08,4621.4,4621.3,44.01663129]
[1757855086852,1e-08,4621.4,4621.3,44.12463129]
[1757855087055,0.4947,4623.5,4623.4,2.16291041]
[1757855087472,0.2884,4623.5,4623.4,2.16291041]
[1757855087968,1.2156,4623.5,4623.4,2.16291041]
[1757855089870,0.2884,4623.5,4623.4,2.16291041]
[1757855090202,0.4629,4624.2,4624.1,2.16258298]
[1757855090374,1.2156,4624.2,4624.1,2.16258298]
[1757855093190,0.2884,4624.2,4624.1,2.16258298]
[1757855093990,1.66,4624.3,4624.2,2.16253622]
[1757855094192,1.66,4624.3,4624.2,2.18416158]
[1757855094391,1.9484,4624.3,4624.2,2.18416158]
[1757855094667,1.9484,4624.3,4624.2,2.84591923]
[1757855094868,0.4629,4624.7,4624.5,2.16239593]
[1757855095088,0.4629,4624.7,4624.6,2.16234917]
[1757855095490,0.7513,4624.7,4624.6,2.16234917]
[1757855096265,0.2884,4624.7,4624.6,2.16234917]
[1757855096875,1.2358,4624.7,4623.9,3.10779935]
[1757855097058,0.2884,4624.7,4624.6,2.27034917]
[1757855097487,0.2884,4624.7,4624.6,0.108]
[1757855097684,1.2358,4624.7,4624.6,0.108]
[1757855097872,1.7497985,4624.7,4624.3,0.108]
[1757855098079,1.7497985,4624.7,4624.3,2.27047527]
[1757855098293,0.9474,4624.6,4624.3,2.27047527]
[1757855098766,0.3156,4624.4,4624.3,2.27047527]
[1757855098961,1.263,4624.4,4624.3,2.27047527]
[1757855099175,1.263,4624.4,4624.3,0.108]
[1757855099376,4.953,4624.4,4624.3,0.108]
[1757855099562,5.4483,4624.4,4622.5,2.16333153]
[1757855099765,0.108,4624.2,4623.4,0.108]
[1757855099966,0.3156,4623.5,4623.4,0.108]
[1757855100266,1.263,4623.5,4623.4,2.27091041]
[1757855100586,1.263,4623.5,4623.4,0.108]
[1757855100782,1.263,4623.5,4623.4,2.27091041]
[1757855101495,1.263,4623.5,4623.4,0.108]
[1757855101686,1.263,4623.5,4623.0,2.16305578]